bitfinex-derivatives/quotes_BNBF0:USTF0_20230830
["timestamp","ask_amount","ask_price","bid_price","bid_amount"]
[1693407194137,0.07175519,222.89,222.21,0.82621615]
[1693407194335,0.81264708,222.88,222.2,0.89915587]
[1693407194541,0.81264708,222.88,222.21,0.89915587]
[1693407194741,0.14351039,222.92,222.21,0.89915587]
[1693407194742,0.88440227,222.89,222.22,0.82621615]
[1693407194942,0.81264708,222.87,222.22,0.82621615]
[1693407195242,0.81264708,222.86,222.23,0.82621615]
[1693407195439,0.81264708,222.89,222.21,0.82621615]
[1693407195944,0.81264708,222.89,222.21,0.89915587]
[1693407196242,0.81264708,222.88,222.23,0.07293972]
[1693407196442,0.81264708,222.89,222.24,0.82621615]
[1693407196643,0.81264708,222.88,222.24,0.82621615]
[1693407196943,0.81264708,222.87,222.24,0.82621615]
[1693407197145,0.88440227,222.89,222.23,0.82621615]
[1693407197442,0.81264708,222.88,222.24,0.82621615]
[1693407197640,0.81264708,222.88,222.22,0.82621615]
[1693407198241,0.07175519,222.87,222.23,0.07293972]
[1693407198440,0.07175519,222.87,222.24,0.82621615]
[1693407198640,0.95673594,222.94,222.24,0.82621615]
[1693407198641,0.81264708,222.86,222.28,0.07293972]
[1693407198842,0.07175519,222.94,222.27,0.07293972]
[1693407199045,0.07175519,222.94,222.31,0.07293972]
[1693407199342,0.07175519,222.96,222.29,0.89915587]
[1693407199547,0.813084,222.93,222.3,0.82621615]
[1693407199846,0.813084,222.95,222.3,0.82621615]
[1693407200042,0.813084,222.95,222.3,0.89915587]
[1693407200244,0.813084,222.92,222.32,0.07293972]
[1693407200444,0.07175519,222.93,222.33,0.82621615]
[1693407200641,0.88483919,222.94,222.33,0.82621615]
[1693407200846,0.813084,222.91,222.33,0.82621615]
[1693407201142,0.813084,222.93,222.33,0.82621615]
[1693407201546,0.813084,222.92,222.31,0.82621615]
[1693407201845,0.813084,222.92,222.32,0.82621615]
[1693407202046,0.88483919,222.94,222.31,0.82621615]
[1693407202248,0.88483919,222.91,222.34,0.07293972]
[1693407202447,0.813084,222.9,222.35,0.82621615]
[1693407202848,0.813084,222.91,222.35,0.82621615]
[1693407203249,0.813084,222.91,222.34,0.82621615]
[1693407203447,0.813084,222.9,222.34,0.89915587]
[1693407203746,0.813084,222.89,222.35,0.82621615]
[1693407203943,0.813084,222.92,222.35,0.89915587]
[1693407204151,0.07175519,222.92,222.36,0.89915587]
[1693407204350,0.813084,222.91,222.37,0.89915587]
[1693407204550,0.813084,222.91,222.38,0.82621615]
[1693407204953,0.813084,222.91,222.37,0.82621615]
[1693407205148,0.813084,222.91,222.38,0.82621615]
[1693407205350,0.813084,222.9,222.36,0.82621615]
[1693407205551,0.813084,222.92,222.37,0.82621615]
[1693407205750,0.813084,222.91,222.37,0.82621615]
[1693407205953,0.813084,222.91,222.38,0.82621615]
[1693407206151,0.813084,222.91,222.35,0.82621615]
[1693407206347,0.813084,222.91,222.36,0.82621615]
[1693407206748,0.813084,222.9,222.36,0.82621615]
[1693407206951,0.813084,222.89,222.36,0.82621615]
[1693407207157,0.813084,222.92,222.35,0.82621615]
[1693407207355,0.813084,222.91,222.36,0.82621615]
[1693407207550,0.813084,222.92,222.35,0.82621615]
[1693407207754,0.07175519,222.93,222.34,0.07293972]
[1693407207755,0.813084,222.91,222.36,0.82621615]
[1693407207953,0.813084,222.91,222.35,0.82621615]
[1693407208154,0.813084,222.9,222.35,0.89915587]
[1693407208456,0.813084,222.89,222.36,0.82621615]
[1693407208655,0.813084,222.92,222.36,0.82621615]
[1693407208956,0.81347854,222.91,222.36,0.82621615]
[1693407209156,0.81347854,222.9,222.37,0.82621615]
[1693407209349,0.81347854,222.93,222.35,0.82621615]
[1693407209555,0.81347854,222.92,222.36,0.82621615]
[1693407209753,0.81347854,222.92,222.35,0.82621615]
[1693407209952,0.81347854,222.92,222.36,0.82621615]
[1693407210153,0.81347854,222.92,222.37,0.82621615]
[1693407210354,0.81347854,222.92,222.38,0.82621615]
[1693407210556,0.81347854,222.92,222.36,0.82621615]
[1693407210758,0.81347854,222.92,222.37,0.82621615]
[1693407210958,0.88523373,222.92,222.36,0.82621615]
[1693407211159,0.88523373,222.91,222.37,0.82621615]
[1693407211559,0.81347854,222.9,222.38,0.82621615]
[1693407211762,0.81347854,222.9,222.35,0.82621615]
[1693407211959,0.81347854,222.9,222.36,0.82621615]
[1693407212162,0.81347854,222.89,222.37,0.82621615]
[1693407212455,0.07175519,222.91,222.35,0.07293972]
[1693407212456,0.81347854,222.88,222.38,0.82621615]
[1693407212759,0.07175519,222.9,222.39,0.82621615]
[1693407212962,0.81342671,222.89,222.35,0.89915587]
[1693407213154,0.81342671,222.89,222.36,0.82621615]
[1693407213359,0.81342671,222.88,222.36,0.82621615]
[1693407213556,0.07175519,222.91,222.36,0.82621615]
[1693407213759,0.81345132,222.9,222.36,0.82621615]
[1693407213957,0.88520651,222.9,222.36,0.82621615]
[1693407214261,0.81345132,222.89,222.37,0.82621615]
[1693407214763,0.81345132,222.89,222.37,0.89915587]
[1693407214957,0.81345132,222.9,222.38,0.82621615]
[1693407215158,0.8134563,222.89,222.38,0.82621615]
[1693407215357,0.95673594,222.99,222.38,0.82621615]
[1693407215358,0.88521149,222.9,222.38,0.82621615]
[1693407215557,0.8134563,222.89,222.37,0.82621615]
[1693407215860,0.8134563,222.89,222.38,0.82621615]
[1693407216064,0.88521149,222.89,222.37,0.82621615]
[1693407216262,0.8134563,222.88,222.36,0.82621615]
[1693407216563,0.8134563,222.88,222.37,0.82621615]
[1693407217854,0.07175519,222.9,222.37,0.89915587]
[1693407218059,0.81323193,222.89,222.38,0.82621615]
[1693407218657,0.07175519,222.88,222.38,0.89915587]
[1693407218962,0.07175519,222.88,222.39,0.82621615]
[1693407219864,0.21526558,222.88,222.39,0.82621615]
[1693407220063,0.07175519,222.86,222.4,0.07293972]
[1693407220261,0.07175519,222.86,222.41,0.82621615]
[1693407221560,0.95673594,222.94,222.41,0.89915587]
[1693407221561,0.07175519,222.87,222.41,0.89915587]
[1693407221761,0.07175519,222.86,222.42,0.82621615]
[1693407221961,0.07175519,222.86,222.41,0.82621615]
[1693407222164,0.07175519,222.83,222.43,0.07293972]
[1693407222364,0.07175519,222.83,222.44,0.82621615]
[1693407222860,0.07175519,222.83,222.45,0.82621615]
[1693407223066,0.07175519,222.82,222.43,0.89915587]
[1693407223263,0.07175519,222.82,222.44,0.82621615]
[1693407223462,0.07175519,222.82,222.43,0.82621615]
[1693407223863,0.07175519,222.82,222.43,0.89915587]
[1693407224064,0.07175519,222.82,222.44,0.82621615]
[1693407224868,0.07175519,222.82,222.44,0.89915587]
[1693407225065,0.07175519,222.83,222.45,0.82621615]
[1693407225262,0.07175519,222.84,222.45,0.89915587]
[1693407225569,0.07175519,222.84,222.46,0.89915587]
[1693407225769,0.07175519,222.84,222.47,0.82621615]
[1693407225972,0.07175519,222.84,222.47,0.89915587]
[1693407226164,0.07175519,222.84,222.48,0.82621615]
[1693407226968,0.07175519,222.89,222.51,0.07293972]
[1693407227168,0.07175519,222.91,222.54,0.07293972]
[1693407227369,0.07175519,222.91,222.55,0.82621615]
[1693407227871,0.07175519,222.91,222.54,0.82621615]
[1693407228074,0.07175519,222.9,222.55,0.82621615]
[1693407228371,0.07175519,222.89,222.55,0.82621615]
[1693407228967,0.95673594,223.0,222.52,0.07293972]
[1693407228968,0.07175519,222.91,222.53,0.82621615]
[1693407229677,0.07175519,222.91,222.54,0.82621615]
[1693407229973,0.07175519,222.91,222.28,0.97252962]
[1693407229974,0.07175519,222.89,222.55,0.82621615]
[1693407230171,0.07175519,222.88,222.53,0.82621615]
[1693407230371,0.07175519,222.89,222.56,0.82621615]
[1693407230568,0.07175519,222.89,222.57,0.82621615]
[1693407230774,0.07175519,222.89,222.53,0.82621615]
[1693407230975,0.07175519,222.9,222.54,0.82621615]
[1693407231175,0.07175519,222.9,222.53,0.82621615]
[1693407231378,0.07175519,222.9,222.54,0.82621615]
[1693407231574,0.07175519,222.9,222.53,0.82621615]
[1693407231774,0.07175519,222.9,222.45,0.14587944]
[1693407231775,0.07175519,222.9,222.54,0.82621615]
[1693407231978,0.07175519,222.88,222.53,0.07293972]
[1693407232173,0.07175519,222.88,222.54,0.82621615]
[1693407232777,0.07175519,222.89,222.54,0.82621615]
[1693407232973,0.07175519,222.9,222.54,0.82621615]
[1693407233177,0.07175519,222.9,222.46,0.14587944]
[1693407233178,0.07175519,222.9,222.53,0.89915587]
[1693407233386,0.07175519,222.9,222.54,0.82621615]
[1693407233579,0.07175519,222.95,222.58,0.07293972]
[1693407233879,0.07175519,222.98,222.61,0.07293972]
[1693407234078,0.07175519,222.98,222.62,0.07293972]
[1693407234278,0.07175519,222.99,222.62,0.89915587]
[1693407234479,0.07175519,223.0,222.62,0.07293972]
[1693407234680,0.07175519,223.0,222.63,0.82621615]
[1693407235181,0.07175519,222.97,222.63,0.82621615]
[1693407235479,0.07175519,222.97,222.64,0.82621615]
[1693407235680,0.07175519,222.97,222.59,0.82621615]
[1693407235880,0.07175519,222.97,222.6,0.82621615]
[1693407236081,0.07175519,222.97,222.59,0.82621615]
[1693407236276,0.07175519,222.97,222.6,0.82621615]
[1693407236477,0.07175519,222.97,222.59,0.82621615]
[1693407236676,0.07175519,222.97,222.6,0.82621615]
[1693407236880,0.07175519,222.97,222.61,0.82621615]
[1693407237085,0.07175519,222.97,222.59,0.82621615]
[1693407240683,0.07175519,223.0,222.59,0.82621615]
[1693407240885,0.07175519,222.99,222.6,0.82621615]
[1693407241182,0.07175519,222.99,222.61,0.82621615]
[1693407241384,0.07175519,222.99,222.52,0.82621615]
[1693407241584,0.88491198,222.98,222.53,0.82621615]
[1693407241783,0.07175519,222.98,222.51,0.82621615]
[1693407241984,0.07175519,222.99,222.52,0.82621615]
[1693407242184,0.07175519,222.99,222.51,0.82621615]
[1693407242484,0.07175519,222.99,222.52,0.82621615]
[1693407242679,0.07175519,222.99,222.53,0.82621615]
[1693407242985,0.07175519,222.99,222.54,0.82621615]
[1693407243186,0.07175519,222.99,222.5,0.89915587]
[1693407243378,0.07175519,222.99,222.51,0.82621615]
[1693407243983,0.07175519,222.99,222.52,0.82621615]
[1693407244284,0.14351039,223.02,222.53,0.82621615]
[1693407244285,0.07175519,223.0,222.53,0.82621615]
[1693407244483,0.81325034,222.99,222.54,0.82621615]
[1693407244679,0.81325034,222.99,222.55,0.82621615]
[1693407244883,0.81325034,222.99,222.56,0.82621615]
[1693407245181,0.81325034,222.99,222.49,0.07293972]
[1693407245182,0.81325034,222.99,222.57,0.82621615]
[1693407245381,0.81325034,222.99,222.5,0.82621615]
[1693407245577,0.81325034,222.99,222.51,0.82621615]
[1693407245879,0.81325034,222.99,222.52,0.82621615]
[1693407246183,0.81325034,222.99,222.53,0.82621615]
[1693407246383,0.81325034,222.99,222.54,0.82621615]
[1693407246579,0.81325034,222.99,222.49,0.07293972]
[1693407246580,0.81325034,222.99,222.5,0.82621615]
[1693407246787,0.81325034,222.99,222.51,0.82621615]
[1693407246984,0.81325034,222.99,222.5,0.82621615]
[1693407247180,0.81325034,222.99,222.51,0.82621615]
[1693407247385,0.81325034,222.99,222.5,0.82621615]
[1693407247581,0.81325034,222.99,222.51,0.82621615]
[1693407247985,0.88500553,222.99,222.5,0.82621615]
[1693407248182,0.81325034,222.98,222.51,0.82621615]
[1693407248389,0.07175519,222.99,222.5,0.82621615]
[1693407248590,0.07175519,223.0,222.51,0.82621615]
[1693407248887,0.8132575,222.99,222.51,0.82621615]
[1693407250088,0.88501269,222.99,222.51,0.82621615]
[1693407250291,0.07175519,222.99,222.51,0.82621615]
[1693407250889,0.07175519,223.0,222.51,0.82621615]
[1693407251185,0.81322386,222.99,222.51,0.82621615]
[1693407251491,0.07175519,223.0,222.51,0.82621615]
[1693407251684,0.81320216,222.99,222.51,0.82621615]
[1693407251886,0.07175519,222.94,222.51,0.82621615]
[1693407252189,0.88495735,222.93,222.45,0.82621615]
[1693407252485,0.81295984,222.92,222.45,0.82621615]
[1693407252692,0.07175519,222.93,222.45,0.82621615]
[1693407252883,0.88474051,222.92,222.45,0.82621615]
[1693407253088,0.07175519,222.92,222.45,0.82621615]
[1693407253890,0.07175519,222.91,222.45,0.82621615]
[1693407254192,0.88465744,222.9,222.45,0.82621615]
[1693407254385,0.07175519,222.9,222.44,0.82621615]
[1693407255890,0.07175519,222.89,222.44,0.89915587]
[1693407256191,0.07175519,222.89,222.45,0.82621615]
[1693407257291,0.07175519,222.9,222.45,0.89915587]
[1693407257491,0.07175519,222.9,222.46,0.82621615]
[1693407257890,0.14351039,222.92,222.46,0.82621615]
[1693407257891,0.07175519,222.89,222.46,0.89915587]
[1693407258091,0.07175519,222.89,222.47,0.82621615]
[1693407259992,0.07175519,222.88,222.47,0.89915587]
[1693407260189,0.07175519,222.88,222.48,0.82621615]
[1693407260395,0.07175519,222.87,222.47,0.82621615]
[1693407260695,0.07175519,222.86,222.48,0.82621615]
[1693407260893,0.07175519,222.87,222.47,0.82621615]
[1693407261092,0.07175519,222.87,222.48,0.82621615]
[1693407261288,0.07175519,222.87,222.47,0.82621615]
[1693407262096,0.07175519,222.86,222.46,0.89915587]
[1693407262295,0.07175519,222.86,222.47,0.82621615]
[1693407262796,0.14351039,222.89,222.47,0.82621615]
[1693407262797,0.07175519,222.87,222.47,0.82621615]
[1693407264100,0.07175519,222.88,222.47,0.82621615]
[1693407264397,0.07175519,222.88,222.48,0.82621615]
[1693407264597,0.07175519,222.88,222.46,0.82621615]
[1693407264798,0.07175519,222.88,222.47,0.82621615]
[1693407264999,0.07175519,222.88,222.46,0.89915587]
[1693407265201,0.07175519,222.88,222.47,0.82621615]
[1693407265593,0.07175519,222.89,222.47,0.82621615]
[1693407266994,0.07175519,222.88,222.47,0.82621615]
[1693407267192,0.07175519,222.89,222.47,0.82621615]
[1693407268301,0.07175519,222.89,222.46,0.82621615]
[1693407268504,0.07175519,222.89,222.47,0.82621615]
[1693407268803,0.07175519,222.89,222.48,0.82621615]
[1693407269106,0.07175519,222.89,222.49,0.82621615]
[1693407269303,0.07175519,222.89,222.46,0.82621615]
[1693407269499,0.07175519,222.89,222.5,0.82621615]
[1693407269701,0.07175519,222.89,222.51,0.82621615]
[1693407269899,0.07175519,222.89,222.46,0.82621615]
[1693407270101,0.07175519,222.89,222.46,0.89915587]
[1693407270299,0.07175519,222.89,222.47,0.82621615]
[1693407270601,0.07175519,222.89,222.48,0.82621615]
[1693407270803,0.07175519,222.89,222.47,0.82621615]
[1693407271006,0.07175519,222.89,222.48,0.82621615]
[1693407271308,0.07175519,222.88,222.49,0.82621615]
[1693407271508,0.07175519,222.89,222.47,0.82621615]
[1693407271711,0.07175519,222.89,222.48,0.82621615]
[1693407272008,0.07175519,222.88,222.49,0.82621615]
[1693407272307,0.07175519,222.88,222.5,0.82621615]
[1693407272605,0.07175519,222.88,222.51,0.82621615]
[1693407272807,0.07175519,222.89,222.48,0.82621615]
[1693407273001,0.07175519,222.89,222.47,0.07293972]
[1693407273002,0.07175519,222.88,222.49,0.82621615]
[1693407273206,0.07175519,222.88,222.48,0.82621615]
[1693407274302,0.07175519,222.87,222.48,0.82621615]
[1693407274504,0.07175519,222.87,222.47,0.82621615]
[1693407275007,0.07175519,222.88,222.47,0.89915587]
[1693407275209,0.07175519,222.88,222.48,0.82621615]
[1693407275408,0.07175519,222.89,222.48,0.89915587]
[1693407275608,0.07175519,222.89,222.49,0.82621615]
[1693407277010,0.07175519,222.88,222.49,0.82621615]
[1693407277404,0.95673594,222.96,222.49,0.82621615]
[1693407277405,0.07175519,222.87,222.49,0.82621615]
[1693407278105,0.07175519,222.87,222.48,0.82621615]
[1693407278305,0.07175519,222.87,222.49,0.82621615]
[1693407278509,0.07175519,222.87,222.48,0.82621615]
[1693407278710,0.07175519,222.86,222.48,0.82621615]
[1693407279211,0.07175519,222.86,222.48,0.89915587]
[1693407279411,0.07175519,222.86,222.49,0.82621615]
[1693407279605,0.07175519,222.86,222.48,0.82621615]
[1693407279805,0.07175519,222.86,222.49,0.82621615]
[1693407280005,0.07175519,222.86,222.5,0.82621615]
[1693407280212,0.07175519,222.86,222.48,0.82621615]
[1693407280511,0.07175519,222.86,222.49,0.82621615]
[1693407280724,0.07175519,222.85,222.49,0.82621615]
[1693407280908,0.07175519,222.85,222.48,0.82621615]
[1693407281106,0.07175519,222.84,222.49,0.82621615]
[1693407281413,0.07175519,222.84,222.48,0.82621615]
[1693407281605,0.07175519,222.84,222.49,0.82621615]
[1693407282012,0.07175519,222.85,222.49,0.82621615]
[1693407282208,0.07175519,222.84,222.49,0.82621615]
[1693407282814,0.07175519,222.84,222.48,0.82621615]
[1693407283015,0.07175519,222.83,222.49,0.82621615]
[1693407283412,0.07175519,222.83,222.49,0.89915587]
[1693407283610,0.07175519,222.83,222.5,0.82621615]
[1693407284014,0.07175519,222.8,222.51,0.82621615]
[1693407284210,0.07175519,222.79,222.46,0.82621615]
[1693407284412,0.07175519,222.83,222.47,0.89798654]
[1693407284617,0.07175519,222.84,222.48,0.07293972]
[1693407284815,0.07175519,222.85,222.5,0.07293972]
[1693407285008,0.21526558,222.87,222.51,0.89798654]
[1693407285216,0.07175519,222.84,222.52,0.82504682]
[1693407285713,0.07175519,222.85,222.52,0.82504682]
[1693407286216,0.07175519,222.82,222.54,0.07293972]
[1693407286409,0.07175519,222.82,222.55,0.82504682]
[1693407288315,0.07175519,222.81,222.55,0.82504682]
[1693407289119,0.07175519,222.81,222.54,0.82504682]
[1693407289817,0.07175519,222.8,222.54,0.82504682]
[1693407290117,0.07175519,222.8,222.53,0.82504682]
[1693407290416,0.07175519,222.8,222.54,0.82504682]
[1693407290617,0.07175519,222.8,222.53,0.82504682]
[1693407291115,0.07175519,222.8,222.53,0.89798654]
[1693407291317,0.07175519,222.8,222.53,0.82504682]
[1693407291511,0.07175519,222.8,222.54,0.82504682]
[1693407291719,0.07175519,222.8,222.53,0.82504682]
[1693407291913,0.07175519,222.8,222.54,0.82504682]
[1693407292118,0.07175519,222.8,222.53,0.82504682]
[1693407292318,0.07175519,222.8,222.55,0.82504682]
[1693407292516,0.07175519,222.8,222.56,0.82504682]
[1693407292712,0.07175519,222.8,222.53,0.82504682]
[1693407292911,0.07175519,222.8,222.54,0.82502993]
[1693407293113,0.07175519,222.8,222.53,0.82502993]
[1693407293317,0.07175519,222.8,222.55,0.82502993]
[1693407293513,0.07175519,222.8,222.56,0.82502993]
[1693407293815,0.07175519,222.8,222.52,0.07293972]
[1693407294022,0.07175519,222.8,222.53,0.82502187]
[1693407295624,0.07175519,222.79,222.53,0.82502187]
[1693407296219,0.07175519,222.79,222.52,0.82502187]
[1693407296421,0.07175519,222.79,222.52,0.89796159]
[1693407296622,0.07175519,222.79,222.53,0.82502187]
[1693407297422,0.07175519,222.79,222.52,0.07293972]
[1693407297625,0.07175519,222.75,222.47,0.07293972]
[1693407297826,0.07175519,222.75,222.48,0.82525984]
[1693407299028,0.07175519,222.76,222.48,0.82525984]
[1693407299226,0.07175519,222.76,222.47,0.82525984]
[1693407299524,0.07175519,222.77,222.48,0.82525984]
[1693407299721,0.07175519,222.76,222.48,0.82525984]
[1693407299922,0.07175519,222.76,222.47,0.82525984]
[1693407300122,0.07175519,222.81,222.51,0.07293972]
[1693407300327,0.07175519,222.81,222.52,0.82525984]
[1693407304228,0.07175519,222.81,222.52,0.89819956]
[1693407304428,0.07175519,222.82,222.53,0.82525984]
[1693407305035,0.07175519,222.82,222.53,0.89819956]
[1693407305227,0.07175519,222.82,222.54,0.82525984]
[1693407305531,0.07175519,222.83,222.55,0.82525984]
[1693407305731,0.07175519,222.83,222.54,0.82525984]
[1693407305932,0.07175519,222.83,222.55,0.82525984]
[1693407306231,0.07175519,222.83,222.56,0.82525984]
[1693407306628,0.07175519,222.83,222.57,0.82525984]
[1693407306825,0.07175519,222.82,222.54,0.82525984]
[1693407307032,0.07175519,222.82,222.45,0.14587944]
[1693407307033,0.07175519,222.82,222.55,0.82497868]
[1693407307226,0.07175519,222.82,222.52,0.07293972]
[1693407307227,0.07175519,222.82,222.56,0.82497868]
[1693407307432,0.07175519,222.81,222.53,0.82497868]
[1693407307627,0.07175519,222.81,222.54,0.82500797]
[1693407307833,0.07175519,222.81,222.55,0.82500797]
[1693407308131,0.07175519,222.8,222.51,0.07293972]
[1693407308332,0.07175519,222.8,222.52,0.82502628]
[1693407308533,0.07175519,222.8,222.51,0.82502628]
[1693407310337,0.07175519,222.81,222.51,0.897966]
[1693407310530,0.07175519,222.81,222.52,0.82502628]
[1693407310735,0.07175519,222.8,222.52,0.82502628]
[1693407312536,0.07175519,222.81,222.52,0.82502628]
[1693407314743,0.07175519,222.8,222.52,0.82502628]
[1693407314943,0.07175519,222.81,222.52,0.82502628]
[1693407315243,0.07175519,222.8,222.52,0.82502628]
[1693407318438,0.07175519,222.81,222.52,0.82502628]
[1693407318944,0.07175519,222.81,222.52,0.897966]
[1693407319139,0.07175519,222.8,222.53,0.82502628]
[1693407319939,0.07175519,222.79,222.53,0.82502628]
[1693407320143,0.07175519,222.75,222.52,0.82502628]
[1693407320444,0.07175519,222.75,222.47,0.07293972]
[1693407320745,0.07175519,222.76,222.48,0.82523286]
[1693407320946,0.07175519,222.75,222.47,0.82523286]
[1693407321240,0.07175519,222.75,222.48,0.82523286]
[1693407321446,0.07175519,222.75,222.47,0.82523286]
[1693407321636,0.07175519,222.76,222.48,0.82523286]
[1693407321842,0.07175519,222.76,222.47,0.82523286]
[1693407322040,0.07175519,222.76,222.48,0.82523286]
[1693407322240,0.07175519,222.76,222.47,0.82523286]
[1693407322440,0.07175519,222.76,222.48,0.82523286]
[1693407322645,0.07175519,222.76,222.47,0.82523286]
[1693407322843,0.07175519,222.76,222.48,0.82523286]
[1693407323041,0.07175519,222.76,222.49,0.82523286]
[1693407323344,0.07175519,222.76,222.5,0.82523286]
[1693407323543,0.07175519,222.75,222.46,0.82523286]
[1693407323746,0.07175519,222.75,222.47,0.825271]
[1693407323950,0.07175519,222.75,222.45,0.825271]
[1693407324149,0.07175519,222.75,222.46,0.825271]
[1693407324344,0.07175519,222.75,222.44,0.07293972]
[1693407324345,0.07175519,222.75,222.45,0.825271]
[1693407324550,0.07175519,222.76,222.46,0.825271]
[1693407324744,0.07175519,222.76,222.43,0.07293972]
[1693407324745,0.07175519,222.76,222.44,0.825271]
[1693407324947,0.07175519,222.76,222.45,0.825271]
[1693407325147,0.07175519,222.76,222.44,0.825271]
[1693407325549,0.95673594,222.84,222.44,0.825271]
[1693407325550,0.07175519,222.77,222.44,0.825271]
[1693407327951,0.07175519,222.77,222.45,0.825271]
[1693407328252,0.07175519,222.77,222.46,0.825271]
[1693407328551,0.07175519,222.77,222.47,0.825271]
[1693407328753,0.07175519,222.77,222.43,0.825271]
[1693407329053,0.07175519,222.77,222.44,0.825271]
[1693407329353,0.07175519,222.77,222.45,0.825271]
[1693407329546,0.07175519,222.78,222.43,0.825271]
[1693407330856,0.07175519,222.77,222.43,0.825271]
[1693407331156,0.07175519,222.77,222.44,0.825271]
[1693407331354,0.07175519,222.77,222.42,0.825271]
[1693407331554,0.07175519,222.78,222.43,0.825271]
[1693407331753,0.07175519,222.78,222.42,0.825271]
[1693407331953,0.07175519,222.78,222.43,0.825271]
[1693407332255,0.07175519,222.78,222.44,0.825271]
[1693407332456,0.07175519,222.78,222.45,0.825271]
[1693407332756,0.07175519,222.78,222.46,0.825271]
[1693407332952,0.07175519,222.78,222.47,0.825271]
[1693407333254,0.07175519,222.78,222.48,0.825271]
[1693407333457,0.07175519,222.78,222.41,0.825271]
[1693407333754,0.07175519,222.78,222.42,0.825271]
[1693407333956,0.07175519,222.78,222.41,0.825271]
[1693407334152,0.07175519,222.78,222.42,0.825271]
[1693407334349,0.07175519,222.78,222.41,0.825271]
[1693407334551,0.07175519,222.78,222.42,0.825271]
[1693407334754,0.07175519,222.78,222.41,0.825271]
[1693407334956,0.07175519,222.78,222.42,0.825271]
[1693407335157,0.07175519,222.78,222.43,0.825271]
[1693407335459,0.07175519,222.78,222.44,0.825271]
[1693407335656,0.07175519,222.79,222.41,0.825271]
[1693407335855,0.07175519,222.79,222.42,0.825271]
[1693407336056,0.07175519,222.79,222.41,0.825271]
[1693407336358,0.07175519,222.79,222.42,0.825271]
[1693407336554,0.07175519,222.79,222.41,0.825271]
[1693407336858,0.07175519,222.79,222.42,0.825271]
[1693407337059,0.07175519,222.79,222.41,0.825271]
[1693407337359,0.07175519,222.79,222.42,0.825271]
[1693407337559,0.07175519,222.79,222.41,0.825271]
[1693407337755,0.07175519,222.79,222.42,0.825271]
[1693407337959,0.07175519,222.79,222.41,0.825271]
[1693407338156,0.07175519,222.79,222.42,0.825271]
[1693407338361,0.07175519,222.79,222.41,0.825271]
[1693407338561,0.07175519,222.79,222.42,0.825271]
[1693407338762,0.07175519,222.79,222.41,0.89821072]
[1693407338962,0.07175519,222.79,222.42,0.825271]
[1693407339263,0.07175519,222.8,222.42,0.825271]
[1693407339658,0.07175519,222.8,222.42,0.89821072]
[1693407339865,0.07175519,222.8,222.43,0.825271]
[1693407340763,0.07175519,222.8,222.42,0.825271]
[1693407340959,0.07175519,222.79,222.44,0.825271]
[1693407341164,0.07175519,222.79,222.45,0.825271]
[1693407341462,0.07175519,222.79,222.46,0.825271]
[1693407341663,0.07175519,222.79,222.42,0.825271]
[1693407342058,0.07175519,222.78,222.42,0.825271]
[1693407342258,0.07175519,222.79,222.42,0.825271]
[1693407342558,0.07175519,222.78,222.42,0.89821072]
[1693407342762,0.07175519,222.78,222.43,0.825271]
[1693407343258,0.07175519,222.79,222.43,0.825271]
[1693407343967,0.07175519,222.79,222.43,0.89821072]
[1693407344160,0.07175519,222.79,222.44,0.825271]
[1693407344960,0.07175519,222.81,222.45,0.07293972]
[1693407345159,0.07175519,222.81,222.44,0.825271]
[1693407345160,0.07175519,222.81,222.46,0.825271]
[1693407345365,0.07175519,222.81,222.45,0.89821072]
[1693407345561,0.07175519,222.81,222.46,0.825271]
[1693407345763,0.07175519,222.8,222.46,0.825271]
[1693407346366,0.07175519,222.8,222.45,0.825271]
[1693407346565,0.07175519,222.8,222.46,0.825271]
[1693407346759,0.07175519,222.79,222.45,0.89821072]
[1693407346965,0.07175519,222.79,222.46,0.825271]
[1693407347561,0.07175519,222.8,222.46,0.825271]
[1693407347765,0.07175519,222.79,222.46,0.825271]
[1693407349065,0.07175519,222.79,222.46,0.89821072]
[1693407349366,0.07175519,222.8,222.47,0.825271]
[1693407349567,0.07175519,222.84,222.51,0.07293972]
[1693407349767,0.07175519,222.84,222.52,0.825271]
[1693407349968,0.07175519,222.86,222.52,0.825271]
[1693407351770,0.07175519,222.87,222.52,0.825271]
[1693407351969,0.07175519,222.87,222.51,0.825271]
[1693407352167,0.07175519,222.86,222.52,0.825271]
[1693407352369,0.07175519,222.86,222.51,0.825271]
[1693407352568,0.07175519,222.86,222.5,0.07293972]
[1693407352569,0.07175519,222.86,222.52,0.825271]
[1693407352770,0.07175519,222.86,222.51,0.825271]
[1693407352974,0.07175519,222.86,222.52,0.825271]
[1693407353171,0.07175519,222.87,222.51,0.89821072]
[1693407353467,0.07175519,222.87,222.52,0.825271]
[1693407353666,0.07175519,222.88,222.52,0.825271]
[1693407353873,0.07175519,222.88,222.53,0.825271]
[1693407354067,0.07175519,222.87,222.53,0.825271]
[1693407354268,0.07175519,222.87,222.54,0.825271]
[1693407354574,0.07175519,222.87,222.49,0.07293972]
[1693407354575,0.07175519,222.88,222.55,0.825271]
[1693407354767,0.07175519,222.88,222.5,0.825271]